bitfinex/quotes_ETHUSD_20251201
["timestamp","ask_amount","ask_price","bid_price","bid_amount"]
[1764600360353,3.743,2821.1,2819.3,0.1027]
[1764600360534,0.1811,2820.2,2819.4,0.23]
[1764600360870,0.1811,2820.2,2819.3,0.1027]
[1764600360871,0.1811,2820.2,2819.3,0.23]
[1764600361150,0.1811,2820.2,2819.4,10.64056182]
[1764600361447,0.1811,2822.1,2819.9,1.13109811]
[1764600361613,4.0367861,2822.0,2820.2,1.13109811]
[1764600361812,4.0367861,2822.0,2819.9,0.23]
[1764600361813,11.12398679,2822.0,2819.9,0.23]
[1764600362042,0.35160386,2821.7,2820.0,0.23]
[1764600362315,0.35160386,2821.7,2820.5,9.55629849]
[1764600362316,0.09989793,2821.7,2820.5,9.55629849]
[1764600362514,0.1811,2822.4,2819.5,0.72559411]
[1764600362515,0.1811,2822.4,2821.6,0.0946]
[1764600362750,0.1811,2822.4,2821.5,0.23]
[1764600362975,0.4932,2822.2,2821.4,0.23]
[1764600363134,0.4932,2822.2,2821.5,7.08842814]
[1764600363135,0.4037647,2822.1,2821.5,7.08842814]
[1764600363336,0.4037647,2822.1,2820.6,3.9507645]
[1764600363337,0.4932,2822.1,2821.2,0.23]
[1764600363763,0.1811,2821.3,2820.5,4.46016477]
[1764600364060,0.1811,2821.3,2820.6,0.23]
[1764600364230,10.86084668,2822.3,2820.7,0.405504]
[1764600364231,0.0012,2822.3,2820.7,0.405504]
[1764600364435,0.0012,2822.3,2821.4,0.405504]
[1764600364637,0.0012,2822.3,2821.8,0.72559411]
[1764600364848,0.0012,2822.3,2822.0,0.405504]
[1764600365068,0.0012,2822.3,2821.9,0.635504]
[1764600365069,0.0012,2822.3,2822.2,0.1364]
[1764600365370,0.0012,2822.3,2822.2,10.19180249]
[1764600365556,0.002,2822.6,2822.3,1.13109811]
[1764600365869,0.002,2822.6,2822.4,0.23]
[1764600366162,0.002,2822.6,2822.3,0.405504]
[1764600366365,0.002,2822.6,2822.3,1.94594366]
[1764600366865,0.002,2822.6,2822.3,0.23]
[1764600367067,0.002,2822.6,2822.0,0.72559411]
[1764600367252,0.002,2822.6,2822.1,7.78862108]
[1764600367458,0.002,2822.6,2822.1,11.33208162]
[1764600367655,0.002,2822.6,2822.2,0.877204]
[1764600368170,0.4932,2822.5,2821.4,0.23]
[1764600368344,0.4932,2822.5,2820.6,10.02799849]
[1764600368345,0.1811,2821.9,2820.6,10.02799849]
[1764600368551,0.1811,2821.9,2821.1,0.1352]
[1764600368871,0.1811,2821.9,2821.2,0.23]
[1764600369386,0.002,2822.6,2821.4,10.2818926]
[1764600369692,0.002,2822.6,2821.5,0.405504]
[1764600369847,0.002,2822.6,2821.4,10.2818926]
[1764600369848,0.4932,2822.5,2821.4,0.72559411]
[1764600370048,0.4932,2822.5,2821.6,0.23]
[1764600370292,0.002,2822.6,2821.6,0.23]
[1764600370532,0.002,2822.6,2821.7,0.405504]
[1764600370875,0.002,2822.6,2822.1,9.55629849]
[1764600371218,0.002,2822.6,2822.3,7.08641886]
[1764600371593,0.002,2822.6,2822.3,7.55811886]
[1764600371774,0.002,2822.6,2822.4,0.23]
[1764600372117,0.002,2822.6,2822.5,0.23]
[1764600372285,0.002,2822.6,2822.2,0.95559411]
[1764600373390,0.4932,2822.5,2821.5,3.54421407]
[1764600373603,0.4932,2822.5,2820.8,3.54505474]
[1764600373604,0.4932,2822.5,2819.1,3.6646745]
[1764600373893,0.1811,2821.3,2820.3,3.54570914]
[1764600374076,0.1811,2821.6,2820.4,0.5207]
[1764600374408,0.1811,2821.6,2820.5,1.00769985]
[1764600374707,0.6743,2821.6,2820.4,0.5207]
[1764600375011,0.1811,2821.8,2820.5,0.405504]
[1764600375206,0.4932,2822.1,2820.9,0.72559411]
[1764600375374,0.1811,2821.9,2821.0,0.95559411]
[1764600375573,0.1811,2821.9,2821.4,0.001]
[1764600375778,0.4932,2821.8,2821.4,0.001]
[1764600376188,0.59309793,2821.8,2821.4,0.001]
[1764600376415,0.4932,2821.8,2821.4,0.001]
[1764600376999,0.1811,2821.9,2821.4,0.001]
[1764600377207,0.4932,2822.2,2821.4,0.001]
[1764600377709,0.1811,2821.5,2821.4,0.001]
[1764600378013,0.1811,2821.5,2821.1,0.001]
[1764600378223,0.6743,2821.5,2821.1,0.001]
[1764600378395,0.4932,2821.4,2821.1,0.001]
[1764600379588,0.59309793,2821.4,2821.1,0.001]
[1764600379903,0.43184224,2821.3,2821.1,0.001]
[1764600380107,0.4932,2821.4,2821.1,0.001]
[1764600380289,0.4932,2821.3,2821.1,0.001]
[1764600380495,0.1811,2821.5,2821.1,0.001]
[1764600380997,3.54298771,2822.5,2821.1,0.001]
[1764600380998,0.4932,2822.4,2821.1,0.6618]
[1764600381213,0.4932,2822.4,2821.3,0.72559411]
[1764600381396,0.4932,2822.4,2821.6,0.72559411]
[1764600381810,0.002,2822.6,2821.6,0.72559411]
[1764600381811,0.4952,2822.6,2821.6,0.72559411]
[1764600381992,0.002,2822.6,2821.7,10.43350249]
[1764600382411,0.0012,2822.6,2821.9,0.405504]
[1764600382611,0.0012,2822.6,2822.1,0.405504]
[1764600382785,0.0012,2822.6,2822.2,0.4717]
[1764600383114,0.0012,2822.6,2822.3,0.23]
[1764600383496,0.0012,2822.6,2822.3,3.5431691]
[1764600383729,0.0012,2822.6,2822.2,0.72559411]
[1764600384214,0.0012,2822.6,2821.8,1.36109811]
[1764600384415,0.0012,2822.6,2821.5,3.54421407]
[1764600384582,0.4774,2822.5,2821.6,0.23]
[1764600384982,0.4774,2822.5,2821.6,0.95559411]
[1764600385459,0.4774,2822.5,2821.7,7.0879257]
[1764600385804,4.02039089,2822.5,2821.6,4.2696326]
[1764600385979,0.40215909,2822.4,2821.5,0.23]
[1764600386186,0.35160386,2822.3,2821.5,0.23]
[1764600386510,0.188,2821.6,2821.1,0.001]
[1764600387023,0.188,2821.6,2821.1,7.09040191]
[1764600387223,0.4774,2821.5,2821.1,3.54570195]
[1764600387431,0.6654,2821.6,2821.1,0.001]
[1764600387598,0.4774,2821.5,2821.1,0.001]
[1764600387928,0.89835017,2821.5,2821.1,0.001]
[1764600388511,0.85010386,2821.4,2821.1,0.001]
[1764600388698,0.35160386,2821.2,2821.1,0.001]
[1764600389015,0.4985,2821.3,2821.1,0.001]
[1764600389242,7.50622278,2821.6,2821.1,0.001]
[1764600389243,0.35160386,2821.2,2821.1,0.001]
[1764600389429,3.54459095,2821.2,2821.1,0.001]
[1764600389639,0.418,2821.6,2821.1,0.001]
[1764600389640,0.188,2821.6,2821.1,0.001]
[1764600389866,0.4985,2821.5,2821.1,0.001]
[1764600390365,0.1993,2821.9,2821.1,0.1217]
[1764600390754,0.6978,2821.9,2821.1,0.001]
[1764600391459,4.24159632,2821.9,2821.2,3.54459095]
[1764600391773,0.0012,2822.6,2821.4,0.405504]
[1764600391926,0.0012,2822.6,2821.6,0.405504]
[1764600392268,0.4997,2822.6,2821.6,0.405504]
[1764600392674,0.4997,2822.6,2821.5,0.699]
[1764600392675,4.04256364,2822.6,2821.7,0.23]
[1764600392839,0.91414616,2822.6,2821.7,0.23]
[1764600393157,0.4997,2822.6,2821.7,0.23]
[1764600393365,0.0012,2822.6,2821.7,0.23]
[1764600393525,0.0012,2822.6,2821.9,0.72559411]
[1764600393727,0.4997,2822.6,2821.9,0.72559411]
[1764600393928,0.4997,2822.6,2821.6,0.72559411]
[1764600394159,0.4997,2822.6,2821.7,0.23]
[1764600395225,0.0012,2822.6,2821.7,0.23]
[1764600397336,0.0012,2822.6,2822.0,0.469]
[1764600397686,0.0012,2822.6,2822.2,0.72559411]
[1764600397846,0.0012,2822.6,2822.3,0.23]
[1764600399276,0.0012,2822.6,2822.2,1.90809665]
[1764600399440,0.0012,2822.6,2822.3,0.23]
[1764600399831,0.0012,2822.6,2822.4,7.0861678]
[1764600400065,0.1545,2822.9,2822.4,7.0861678]
[1764600400562,0.002,2823.0,2822.4,7.0861678]
[1764600400764,0.002,2823.0,2822.5,0.72559411]
[1764600401063,0.002,2823.0,2822.6,0.78117619]
[1764600401758,0.1993,2822.9,2822.5,0.72559411]
[1764600402066,0.1993,2822.9,2822.7,0.72559411]
[1764600402270,0.1993,2822.9,2822.6,7.08566568]
[1764600402453,0.002,2823.0,2822.7,0.469]
[1764600402772,0.002,2823.0,2822.6,10.62849852]
[1764600402978,0.002,2823.0,2822.6,11.78690778]
[1764600403362,0.002,2823.0,2822.6,12.25590778]
[1764600403694,0.002,2823.0,2822.9,0.4711]
[1764600403840,0.002,2823.0,2822.9,4.96915044]
[1764600404387,0.002,2823.0,2822.9,5.43815044]
[1764600404593,0.002,2823.0,2822.9,6.33622255]
[1764600405512,0.0012,2823.0,2822.9,6.33622255]
[1764600405901,0.0012,2823.0,2822.9,5.86722255]
[1764600406101,0.0012,2823.0,2822.9,6.33622255]
[1764600406678,0.0012,2823.0,2822.9,2.09476622]
[1764600406861,0.0012,2823.0,2822.9,1.66569411]
[1764600407061,0.0012,2823.0,2822.9,5.20815044]
[1764600407893,0.002,2823.2,2823.1,3.94770937]
[1764600408095,0.002,2823.3,2823.1,3.94770937]
[1764600408096,0.1993,2824.5,2823.3,0.405504]
[1764600408394,0.1993,2824.9,2824.1,0.1968]
[1764600408600,0.1993,2824.9,2824.2,0.23]
[1764600408796,0.6978,2824.9,2824.2,0.23]
[1764600409301,1.14149631,2824.9,2823.8,0.23]
[1764600409464,1.14149631,2824.9,2823.8,0.699]
[1764600409999,4.68145523,2824.9,2824.0,0.72559411]
[1764600410294,0.4985,2824.8,2824.0,0.72559411]
[1764600411006,0.4985,2824.8,2824.0,0.95559411]
[1764600411166,0.1993,2824.9,2824.1,0.405504]
[1764600411494,0.6978,2824.9,2824.1,0.405504]
[1764600411666,0.002,2824.5,2824.1,0.405504]
[1764600412072,0.002,2824.5,2824.0,0.23]
[1764600412073,0.4574,2824.2,2824.0,0.23]
[1764600412502,0.4746,2824.4,2824.0,0.23]
[1764600412708,0.002,2824.5,2824.0,0.23]
[1764600413276,0.4828,2824.5,2823.8,0.72559411]
[1764600413468,0.002,2824.5,2823.9,0.23]
[1764600413692,0.002,2824.5,2823.8,0.95559411]
[1764600413905,0.002,2824.5,2823.9,0.4591]
[1764600414107,0.002,2824.5,2824.2,0.72559411]
[1764600414306,0.002,2824.5,2824.4,0.4657]
[1764600414673,0.002,2824.5,2824.4,0.9248]
[1764600415889,0.002,2824.5,2824.4,1.330304]
[1764600416210,0.002,2824.8,2824.5,1.13109811]
[1764600416389,0.002,2825.1,2824.8,0.405504]
[1764600416586,0.1805,2826.3,2825.1,0.405504]
[1764600416798,0.1805,2826.3,2825.7,9.63500173]
[1764600417113,0.1805,2826.3,2825.7,9.86500173]
[1764600417284,0.1805,2826.3,2825.7,0.72559411]
[1764600417492,0.1805,2826.3,2825.7,1.19129411]
[1764600418225,0.9492,2825.8,2825.1,0.23]
[1764600418380,0.0455,2825.6,2825.1,0.23]
[1764600418713,0.4808,2825.5,2824.6,7.08064858]
[1764600418899,0.4808,2825.5,2824.0,9.09070762]
[1764600418900,0.0497,2824.7,2824.0,9.09070762]
[1764600419083,0.4621,2825.2,2824.4,8.90940762]
[1764600419282,0.4808,2825.5,2824.5,0.95559411]
[1764600419613,0.4808,2825.5,2824.8,8.90940762]
[1764600419790,0.4828,2825.8,2824.9,0.95559411]
[1764600419998,0.4828,2825.8,2825.1,0.72559411]
[1764600420183,4.0216274,2825.8,2825.1,0.72559411]
[1764600420535,0.4808,2825.7,2825.1,0.72559411]
[1764600420714,0.4808,2825.7,2825.1,0.23]
[1764600420881,0.4664,2825.2,2824.6,8.90940762]
[1764600421087,0.0455,2825.1,2824.5,0.23]
[1764600421406,0.7560484,2825.6,2824.2,11.08157716]
[1764600421588,1.4668484,2825.6,2823.8,3.54132728]
[1764600421785,0.35160386,2825.0,2823.8,3.77132728]
[1764600422087,7.0794217,2825.1,2824.1,8.90940762]
[1764600422417,0.4808,2825.4,2824.6,0.72559411]
[1764600422716,0.4808,2825.7,2824.6,0.95559411]
[1764600422926,0.4808,2825.7,2824.7,1.07740017]
[1764600423516,0.002,2825.8,2825.3,8.90940762]
[1764600423815,0.4664,2825.4,2824.7,0.98650017]
[1764600424004,0.0455,2824.8,2824.6,3.54032429]
[1764600424202,0.4808,2825.3,2824.7,0.72559411]
[1764600424508,0.002,2825.8,2825.0,0.72559411]
[1764600424682,0.002,2825.8,2825.0,0.95559411]
[1764600424889,0.002,2825.8,2825.1,0.955504]
[1764600425224,0.002,2825.8,2825.4,0.72559411]
[1764600425429,0.002,2825.8,2825.5,0.23]
[1764600425593,0.002,2825.8,2825.3,0.23]
[1764600426008,0.4828,2825.8,2825.0,1.75800428]
[1764600426212,0.4828,2825.8,2825.1,0.23]
[1764600426412,4.02164163,2825.8,2825.2,0.23]
[1764600426609,7.66038119,2825.8,2824.5,3.54039479]
[1764600426821,0.4808,2825.7,2824.7,0.23]
[1764600427021,0.88296416,2825.7,2824.7,0.23]
[1764600427402,0.4808,2825.7,2825.0,0.72559411]
[1764600427800,0.002,2825.8,2825.1,0.3209]
[1764600428223,0.002,2825.8,2825.3,0.72559411]
[1764600428531,0.0012,2825.8,2825.3,9.63500173]
[1764600428719,0.0012,2825.8,2825.4,2.0712819]
[1764600429123,0.0012,2825.8,2824.8,3.54003063]
[1764600429124,0.4664,2825.5,2824.9,12.44935593]
[1764600429325,0.482,2825.8,2825.0,0.95559411]
[1764600429940,0.0012,2825.8,2825.1,0.55]
[1764600430140,0.0012,2825.8,2825.3,0.72559411]
[1764600430301,0.4808,2825.7,2825.3,0.72559411]
[1764600430899,0.002,2825.7,2825.3,1.17511076]
[1764600431125,0.002,2825.7,2825.6,1.19129411]
[1764600431334,0.002,2826.0,2825.7,1.330304]
[1764600431650,0.002,2826.0,2825.9,10.04050573]
[1764600431820,0.002,2826.1,2826.0,1.13109811]
[1764600432017,0.1805,2827.4,2826.3,10.04050573]
[1764600432214,0.1805,2827.4,2826.4,15.28337659]
[1764600432416,0.1805,2827.4,2826.8,8.90940762]
[1764600432614,0.1805,2827.4,2826.9,0.23]
[1764600432840,0.6613,2827.4,2826.4,7.80173335]
[1764600433002,4.54973287,2827.4,2826.7,0.23]
[1764600433207,0.4808,2827.3,2826.4,8.81190669]
[1764600433941,0.1805,2826.5,2824.7,3.5401833]
[1764600434115,0.4808,2826.4,2825.4,10.61796558]
[1764600434318,0.4808,2826.4,2825.5,0.72559411]
[1764600434520,0.4808,2826.4,2825.4,10.61796558]
[1764600434521,0.4808,2826.4,2825.4,7.07864372]
[1764600434833,0.4808,2826.4,2825.5,0.72559411]
[1764600435008,0.4808,2826.4,2825.5,2.28270118]
[1764600435213,4.01888966,2826.4,2825.4,3.53932186]
[1764600435410,4.11878759,2826.4,2825.4,7.07864372]
[1764600435639,0.4808,2826.3,2825.4,7.07864372]
[1764600436137,0.4808,2826.3,2825.5,0.72559411]
[1764600436342,0.4808,2826.3,2825.2,8.90940762]
[1764600436343,0.1805,2825.5,2825.2,7.07913726]
[1764600436638,0.40188897,2826.2,2825.2,7.07913726]
[1764600436853,0.1805,2825.9,2825.3,0.72559411]
[1764600437166,0.1805,2825.9,2824.8,8.90940762]
[1764600437312,0.1805,2825.9,2824.6,0.4601]
[1764600437313,0.4808,2825.8,2824.6,0.001]
[1764600437640,0.58069793,2825.8,2824.7,0.72559411]
[1764600438207,0.58069793,2825.8,2824.8,7.08014726]
[1764600438208,3.5389461,2825.7,2824.8,7.08014726]
[1764600438414,0.35160386,2825.6,2824.8,3.54007363]
[1764600438730,0.1805,2824.9,2824.8,3.54007363]
[1764600438907,0.1805,2824.9,2824.6,3.54128751]
[1764600439113,0.6613,2824.9,2824.6,3.54130479]
[1764600439421,0.1805,2825.2,2824.7,0.72559411]
[1764600439618,0.4808,2825.5,2824.6,10.97618385]
[1764600439824,0.4808,2825.5,2824.7,0.72559411]
[1764600440416,0.6613,2825.9,2824.8,23.06970214]
[1764600440646,0.6613,2825.9,2825.2,8.90940762]
[1764600441343,0.4808,2826.4,2825.3,0.72559411]
[1764600441544,0.1805,2826.8,2826.0,8.90940762]
[1764600441842,0.4808,2827.1,2826.1,0.95459411]
[1764600442042,0.4808,2827.1,2826.2,0.98640017]
[1764600442427,0.1805,2826.3,2825.2,8.90940762]
[1764600442748,0.1805,2826.3,2825.4,0.72559411]
[1764600443309,0.1805,2826.3,2825.4,0.95459411]
[1764600443310,0.4816,2826.2,2825.4,0.95459411]
[1764600443722,0.4816,2826.2,2825.4,2.64888371]
[1764600444065,0.4816,2826.2,2825.4,1.9232896]
[1764600444349,0.1991,2825.5,2825.1,0.229]
[1764600444549,4.08993307,2825.5,2824.6,3.89553026]
[1764600444754,0.4816,2825.4,2824.6,3.54129978]
[1764600444936,0.4816,2825.4,2824.7,0.72559411]
[1764600445140,0.4816,2825.4,2824.6,0.72659411]
[1764600445326,0.1991,2824.7,2824.6,0.001]
[1764600445743,0.6807,2824.7,2824.6,0.001]
[1764600445932,0.78059793,2824.7,2824.6,0.001]
[1764600446333,0.6807,2824.7,2824.6,0.001]
[1764600446536,4.22089895,2824.7,2824.6,0.001]
[1764600447227,5.37149143,2824.7,2824.6,0.001]
[1764600447562,5.77699543,2824.7,2824.4,0.001]
[1764600447711,0.75710786,2824.5,2824.4,0.001]
[1764600447917,0.75710786,2824.2,2824.1,0.001]
[1764600448118,0.229,2824.2,2824.1,0.001]
[1764600448316,1.127704,2824.2,2824.1,0.001]
[1764600448550,5.74572769,2824.2,2824.1,0.001]
[1764600448757,6.67437085,2824.2,2824.1,0.001]
[1764600450053,1.42184316,2824.2,2824.1,0.001]
[1764600450225,4.61462958,2824.2,2824.1,0.001]
[1764600450427,0.4432,2824.2,2824.1,0.001]
[1764600450740,0.6722,2824.2,2824.1,0.001]
[1764600450955,0.229,2824.2,2824.1,0.001]
[1764600451125,0.1991,2824.7,2824.1,0.001]
[1764600451471,7.50778314,2824.7,2824.1,0.001]
[1764600451669,0.35160386,2824.2,2824.1,0.001]
[1764600452356,0.19979587,2824.5,2824.1,0.001]
[1764600452560,0.7222,2824.2,2824.1,0.001]
[1764600453060,4.26302572,2824.2,2824.1,0.001]
[1764600453559,0.7222,2824.2,2824.1,0.001]
[1764600454131,3.64056843,2824.4,2824.1,0.001]
[1764600454340,3.5406705,2824.4,2824.1,0.001]
[1764600454562,0.4932,2824.3,2824.1,0.001]
[1764600455337,0.4932,2824.6,2824.1,0.001]
[1764600455540,0.23,2824.4,2824.1,0.001]
[1764600456881,0.4211,2824.2,2824.1,0.001]
[1764600457081,0.4211,2824.2,2824.0,0.001]
[1764600457082,0.826604,2824.2,2824.0,0.001]
[1764600457232,0.69619587,2824.1,2824.0,0.001]
[1764600457432,0.84800386,2824.1,2824.0,0.001]
[1764600457767,0.7264,2824.1,2824.0,0.001]
[1764600458156,0.7232,2824.1,2824.0,0.001]
[1764600458344,0.82309793,2824.1,2824.0,0.001]
[1764600458544,4.36404902,2824.1,2824.0,0.001]
[1764600458763,5.19224185,2824.1,2824.0,0.001]
[1764600458935,4.36404902,2824.1,2824.0,0.001]
[1764600459962,1.13109811,2824.0,2822.5,3.54286628]
[1764600460162,0.09989793,2823.6,2822.6,0.72559411]
[1764600460464,0.23,2823.5,2822.6,1.19929411]
[1764600460760,0.23,2823.5,2822.8,0.72559411]
[1764600460970,7.31342266,2823.5,2822.7,0.72559411]
[1764600461171,11.34834177,2823.5,2822.2,3.54333498]
[1764600461464,1.62803418,2823.4,2822.3,0.4737]
[1764600461662,1.62803418,2823.4,2822.3,1.19929411]
[1764600461962,0.37704512,2824.3,2823.3,0.5706]
[1764600461963,0.23,2824.1,2823.3,0.5706]
[1764600462333,0.23,2824.1,2823.4,0.4737]
[1764600462866,0.23,2824.1,2823.5,7.0834071]
[1764600463238,0.23,2824.1,2823.4,3.54182466]
[1764600463428,4.03427648,2824.0,2823.1,0.1876]
[1764600463635,8.35587311,2824.0,2823.1,3.72977376]
[1764600463893,0.09989793,2823.8,2823.0,3.54227197]
[1764600464369,0.09989793,2823.8,2822.4,9.54491162]
[1764600464370,0.4932,2823.7,2822.3,3.54311801]
[1764600464576,0.19979587,2823.5,2822.3,3.54311801]
[1764600464777,3.541829,2823.4,2822.6,0.72559411]
[1764600465565,3.541829,2823.4,2822.5,3.54295837]
[1764600465769,3.541829,2823.4,2822.6,0.72559411]
[1764600466153,0.19979587,2823.5,2822.6,0.72559411]
[1764600466352,3.74151421,2823.5,2822.6,0.72559411]
[1764600466576,0.39715142,2823.4,2822.6,0.72559411]
[1764600466786,3.54195445,2823.3,2822.7,3.54270733]
[1764600466993,0.29589793,2822.7,2822.0,3.5445861]
[1764600467169,0.23,2822.6,2822.1,0.1876]
[1764600467362,0.23,2822.6,2822.0,3.54457415]
[1764600467563,0.23,2822.6,2822.1,0.1876]
[1764600467961,0.196,2822.9,2822.1,0.1876]
[1764600468277,0.196,2822.9,2822.3,0.001]
[1764600469453,4.23166037,2822.9,2822.3,0.001]
[1764600469868,0.4932,2822.8,2822.3,0.001]
[1764600470070,0.19979587,2822.4,2822.3,0.001]
[1764600470275,0.42979587,2822.4,2822.3,0.001]
[1764600470475,0.92299587,2822.4,2822.3,0.001]
[1764600471084,4.46607977,2822.4,2822.3,0.001]
[1764600471285,5.2669782,2822.4,2822.3,0.001]
[1764600471483,1.2306943,2822.4,2822.3,0.001]
[1764600471653,0.23,2822.6,2822.3,0.001]
[1764600471858,0.23,2822.7,2822.3,0.001]
[1764600472076,0.23,2822.7,2822.3,0.4747]
[1764600472265,0.4932,2823.1,2822.3,0.001]
[1764600472776,0.23,2823.0,2822.3,0.001]
[1764600473284,0.23,2823.0,2822.3,7.08741886]
[1764600473586,0.23,2823.0,2822.3,10.63062829]
[1764600473884,0.196,2823.2,2822.3,12.58375342]
[1764600474089,0.426,2823.2,2822.3,12.58375342]
[1764600474262,0.426,2823.2,2822.3,9.04054399]
[1764600474263,3.96816747,2823.2,2822.3,9.04054399]
[1764600474469,3.96736747,2823.2,2822.3,7.55701886]
[1764600474670,0.4252,2823.2,2822.3,7.55701886]
[1764600474990,3.96728149,2823.2,2822.3,7.55701886]
[1764600475366,0.4252,2823.2,2822.3,11.10022829]
[1764600475568,0.4252,2823.2,2822.3,12.22901112]
[1764600475771,0.23,2823.1,2822.3,12.22901112]
[1764600476180,0.6957,2823.1,2822.3,1.12978283]
[1764600476381,1.04730386,2823.1,2822.3,4.26968358]
[1764600476582,0.6957,2823.1,2822.3,7.81289301]
[1764600476861,0.23,2823.1,2822.3,7.81289301]
[1764600477074,0.6957,2823.1,2822.3,7.81289301]
[1764600477273,0.46328713,2823.0,2822.3,7.81289301]
[1764600477688,0.4662,2822.4,2822.3,0.001]
[1764600477893,0.6962,2822.4,2822.3,0.001]
[1764600478094,1.26179793,2822.4,2822.3,0.001]
[1764600479462,1.1619,2822.4,2822.3,0.001]
[1764600479666,1.98399101,2822.4,2822.3,0.001]
[1764600479866,5.52707491,2822.4,2822.3,0.001]
[1764600480296,6.25266902,2822.4,2822.3,0.001]
[1764600480504,4.87409811,2822.3,2822.0,0.001]
[1764600480798,4.87409811,2821.5,2820.8,0.001]
[1764600481109,0.23,2821.4,2820.8,0.001]
[1764600481617,0.09989793,2821.3,2820.8,0.001]
[1764600481776,0.32989793,2821.4,2820.8,0.001]
[1764600481971,0.50654535,2821.3,2820.8,0.001]
[1764600482321,0.23,2821.7,2820.9,0.4696]
[1764600482623,0.23,2821.7,2820.8,0.001]
[1764600482967,0.23,2821.7,2820.8,0.4706]
[1764600483370,0.4657,2822.0,2820.9,10.63490373]
[1764600483571,0.23,2821.9,2821.0,1.11055037]
[1764600483792,3.54262422,2822.8,2821.0,1.11055037]
[1764600483793,0.1805,2822.9,2821.1,9.92894794]
[1764600484108,0.19979587,2822.7,2821.3,0.405504]
[1764600484271,0.19979587,2822.7,2821.4,0.4696]
[1764600484678,0.23,2822.6,2821.4,0.4696]
[1764600485072,0.1805,2822.9,2821.5,0.405504]
[1764600485073,0.28039793,2822.9,2821.5,0.405504]
[1764600485402,0.23,2822.8,2821.7,1.13109811]
[1764600485724,0.23,2822.8,2821.9,0.72559411]
[1764600486073,0.23,2822.8,2822.0,0.4696]
[1764600486602,0.23,2822.8,2822.1,0.1929]
[1764600486804,0.23,2823.2,2822.2,0.4696]
[1764600487587,0.23,2823.2,2822.4,0.72559411]
[1764600487818,1.11965608,2823.2,2822.4,0.72559411]
[1764600488023,0.6957,2823.2,2822.4,0.72559411]
[1764600488221,0.6957,2823.2,2821.8,4.60920427]
[1764600488222,0.1805,2822.5,2821.9,3.54371168]
[1764600488720,0.4105,2822.5,2822.0,0.72559411]
[1764600488894,0.4105,2822.5,2821.9,3.54371168]
[1764600489230,0.4657,2822.4,2821.1,0.1929]
[1764600489518,3.64358254,2822.0,2821.1,0.1929]
[1764600489720,0.83005825,2821.9,2821.1,3.73760743]
[1764600489897,0.4657,2821.9,2821.1,7.28232402]
[1764600490098,0.4657,2821.9,2821.2,0.72559411]
[1764600490322,0.09989793,2822.2,2821.1,7.28232402]
[1764600490526,0.56559793,2822.2,2821.2,0.72559411]
[1764600490770,0.4657,2822.1,2821.1,3.73758921]
[1764600490945,0.4657,2822.1,2821.1,7.2823058]
[1764600491123,0.19979587,2822.2,2821.2,0.4696]
[1764600491590,0.09989793,2822.3,2821.3,7.08893062]
[1764600491920,1.19129411,2822.3,2821.3,7.08893062]
[1764600492121,0.49644044,2822.2,2821.3,7.08893062]
[1764600492490,0.96214044,2822.2,2821.2,7.55877187]
[1764600492686,0.35160386,2822.1,2821.2,7.55877187]
[1764600493127,0.96214044,2822.2,2821.2,7.55877187]
[1764600493299,0.49644044,2822.2,2821.3,0.4696]
[1764600493502,0.74609793,2822.5,2821.5,7.08842814]
[1764600493701,0.23,2822.4,2821.5,7.08842814]
[1764600493906,0.23,2822.4,2821.5,7.55802814]
[1764600494223,0.23,2822.4,2821.5,4.01381407]
[1764600494535,0.80620165,2822.3,2821.5,7.55802814]
[1764600494742,0.80620165,2822.3,2821.5,7.08842814]
[1764600495106,0.23,2822.4,2821.5,7.08842814]
[1764600495322,0.6462,2822.5,2821.5,7.55802814]
[1764600495524,0.32989793,2822.6,2821.6,1.19519411]
[1764600495744,0.79559793,2822.6,2821.6,1.19519411]
[1764600496035,0.23,2822.6,2821.7,0.4696]
[1764600496206,0.4657,2823.2,2821.7,0.6996]
[1764600496406,4.23780338,2823.2,2822.5,0.1929]
[1764600496606,0.78797469,2823.1,2822.5,0.1929]
[1764600496809,1.13957855,2823.1,2821.7,0.23]
[1764600497020,0.4657,2823.0,2822.1,0.1929]
[1764600497416,0.4658,2822.2,2821.6,0.72559411]
[1764600497636,0.1805,2822.9,2821.6,0.72559411]
[1764600497637,0.23,2822.5,2821.6,0.72559411]
[1764600497819,0.09989793,2822.4,2821.6,0.72559411]
[1764600498015,8.15890919,2822.5,2821.6,0.72559411]
[1764600498337,0.60728662,2822.5,2821.5,7.55797097]
[1764600498538,0.6957,2822.8,2821.6,0.4696]
[1764600498738,0.6957,2822.8,2821.6,1.19519411]
[1764600499110,0.6957,2822.8,2821.7,0.4696]
[1764600499536,0.6957,2822.8,2821.9,0.72559411]
[1764600499739,0.23,2822.8,2822.0,0.4696]
[1764600500238,0.23,2822.8,2822.1,0.1929]
[1764600500943,4.00960115,2823.4,2822.2,0.4696]
[1764600501143,0.56759793,2823.4,2822.2,0.4696]
[1764600501454,0.23,2823.3,2822.2,0.4696]
[1764600501650,4.20593483,2823.3,2822.4,0.72559411]
[1764600501825,0.663947,2823.3,2822.4,0.72559411]
[1764600502034,3.77195883,2823.3,2822.4,0.72559411]
[1764600502232,0.23,2823.3,2822.5,0.4696]
[1764600503237,0.23,2823.3,2822.4,0.72559411]
[1764600503238,0.5568,2822.6,2822.4,0.72559411]
[1764600503450,17.55401927,2822.5,2820.5,0.001]
[1764600503748,17.55401927,2822.5,2818.5,0.1948]
[1764600503749,0.09989793,2819.6,2818.5,0.1948]
[1764600503965,0.09989793,2819.4,2818.5,0.1948]
[1764600504566,0.405504,2819.5,2818.6,0.4698]